fUST/lending_fUST_20240704
["ID","MTS","AMOUNT","RATE_DAILY","PERIOD"]
[331123746,1720093842552,-500.0,0.00013964,2]
[331123747,1720093842561,-500.0,0.00013964,2]
[331123748,1720093842571,-500.0,0.00013964,2]
[331123749,1720093842580,-503.45390631,0.00013964,2]
[331123750,1720093842590,-500.0,0.00013964,2]
[331123751,1720093842599,-176.26043966,0.00013964,2]
[331123752,1720093842608,-500.0,0.00013964,2]
[331123753,1720093842617,-500.0,0.00013964,2]
[331123754,1720093842626,-500.0,0.00013964,2]
[331123755,1720093842635,-508.80334545,0.00013964,2]
[331123756,1720093842644,-500.0,0.00013964,2]
[331123757,1720093842653,-330.84007039,0.00013964,2]
[331123758,1720093842662,-500.0,0.00013964,2]
[331123759,1720093842671,-500.0,0.00013964,2]
[331123760,1720093842681,-500.0,0.00013964,2]
[331123761,1720093842690,-500.0,0.00013964,2]
[331123762,1720093842699,-456.01048341,0.00013964,2]
[331123763,1720093842708,-500.0,0.00013964,2]
[331123764,1720093842717,-501.7906129,0.00013964,2]
[331123765,1720093842728,-500.0,0.00013964,2]
[331123766,1720093842737,-500.0,0.00013964,2]
[331123767,1720093842756,-500.0,0.00013964,2]
[331123768,1720093842767,-500.0,0.00013964,2]
[331123769,1720093842777,-500.0,0.00013964,2]
[331123770,1720093842786,-500.0,0.00013964,2]
[331123771,1720093842796,-500.0,0.00013964,2]
[331123772,1720093842805,-500.0,0.00013964,2]
[331123773,1720093842814,-500.0,0.00013964,2]
[331123774,1720093842824,-500.0,0.00013964,2]
[331123775,1720093842833,-500.0,0.00013964,2]
[331123776,1720093842842,-500.0,0.00013964,2]
[331123777,1720093842851,-500.0,0.00013964,2]
[331123778,1720093842860,-504.57823144,0.00013964,2]
[331123779,1720093842870,-502.38824736,0.00013964,2]
[331123780,1720093842879,-500.0,0.00013964,2]
[331123781,1720093842888,-501.23035577,0.00013964,2]
[331123782,1720093842898,-500.0,0.00013964,2]
[331123783,1720093842907,-434.11308272,0.00013964,2]
[331123784,1720093842917,-500.0,0.00013964,2]
[331123785,1720093842926,-500.0,0.00013964,2]
[331123786,1720093842936,-500.0,0.00013964,2]
[331123787,1720093842945,-500.0,0.00013964,2]
[331123788,1720093842955,-636.56817691,0.00013964,2]
[331123789,1720093842964,-500.0,0.00013964,2]
[331123790,1720093842975,-500.0,0.00013964,2]
[331123791,1720093842984,-500.0,0.00013964,2]
[331123792,1720093842994,-178.61289237,0.00013964,2]
[331123793,1720093843003,-504.1670917,0.00013964,2]
[331123794,1720093843013,-500.0,0.00013964,2]
[331123795,1720093843022,-500.0,0.00013964,2]
[331123796,1720093843031,-500.0,0.00013964,2]
[331123797,1720093843040,-500.0,0.00013964,2]
[331123798,1720093843050,-500.0,0.00013964,2]
[331123799,1720093843059,-504.08711633,0.00013964,2]
[331123800,1720093843068,-500.0,0.00013964,2]
[331123801,1720093843078,-500.0,0.00013964,2]
[331123802,1720093843087,-500.0,0.00013964,2]
[331123803,1720093843097,-500.0,0.00013964,2]
[331123804,1720093843106,-504.17721381,0.00013964,2]
[331123805,1720093843118,-500.0,0.00013964,2]
[331123806,1720093843129,-503.60821617,0.00013964,2]
[331123807,1720093843138,-298.12313667,0.00013964,2]
[331123808,1720093843148,-501.36868169,0.00013964,2]
[331123809,1720093843159,-422.94484845,0.00013964,2]
[331123810,1720093843169,-501.39494377,0.00013964,2]
[331123811,1720093843179,-509.5,0.00013964,2]
[331123812,1720093843188,-500.0,0.00013964,2]
[331123813,1720093843198,-295.83298247,0.00013964,2]
[331123814,1720093843209,-500.0,0.00013964,2]
[331123815,1720093843218,-507.57568741,0.00013964,2]
[331123816,1720093843228,-151.0,0.00013964,2]
[331123817,1720093843238,-500.0,0.00013964,2]
[331123818,1720093843247,-501.32742922,0.00013964,2]
[331123819,1720093843258,-504.04832553,0.00013964,2]
[331123820,1720093843267,-500.0,0.00013964,2]
[331123821,1720093843276,-500.0,0.00013964,2]
[331123823,1720093843286,-500.0,0.00013964,2]
[331123824,1720093843295,-504.00834534,0.00013964,2]
[331123825,1720093843304,-500.0,0.00013964,2]
[331123826,1720093843314,-156.57167,0.00013964,2]
[331123827,1720093843323,-506.77150427,0.00013964,2]
[331123828,1720093843332,-500.0,0.00013964,2]
[331123830,1720093843342,-505.63634828,0.00013964,2]
[331123832,1720093843351,-500.0,0.00013964,2]
[331123834,1720093843360,-508.14063049,0.00013964,2]
[331123835,1720093843369,-500.0,0.00013964,2]
[331123836,1720093843379,-500.0,0.00013964,2]
[331123837,1720093843388,-506.27187391,0.00013964,2]
[331123838,1720093843398,-527.29058408,0.00013964,2]
[331123839,1720093843409,-500.0,0.00013964,2]
[331123840,1720093843420,-501.59215236,0.00013964,2]
[331123841,1720093843429,-500.0,0.00013964,2]
[331123842,1720093843439,-304.26591386,0.00013964,2]
[331123843,1720093843449,-516.42583207,0.00013964,2]
[331123844,1720093843459,-1347.981152,0.00013964,2]
[331123845,1720093843591,-500.10829568,0.00013964,2]
[331123846,1720093843601,-500.0,0.00013964,2]
[331123847,1720093843610,-1347.981152,0.00013964,2]
[331123848,1720093843619,-500.0,0.00013964,2]
[331123849,1720093843628,-566.98097364,0.00013964,2]
[331123850,1720093843637,-500.0,0.00013964,2]
[331123851,1720093843646,-500.0,0.00013964,2]
[331123852,1720093843655,-263.02224504,0.00013964,2]
[331123853,1720093843665,-500.0,0.00013964,2]
[331123854,1720093843674,-500.0,0.00013964,2]
[331123855,1720093843683,-500.0,0.00013964,2]
[331123856,1720093843693,-500.0,0.00013964,2]
[331123857,1720093843704,-151.0,0.00013964,2]
[331123858,1720093843714,-500.0,0.00013964,2]
[331123859,1720093843725,-500.0,0.00013964,2]
[331123860,1720093843734,-500.0,0.00013964,2]
[331123861,1720093843742,-500.0,0.00013964,2]
[331123862,1720093843751,-500.0,0.00013964,2]
[331123863,1720093843760,-500.0,0.00013964,2]
[331123864,1720093843769,-500.0,0.00013964,2]
[331123865,1720093843779,-246.043137,0.00013964,2]
[331123866,1720093843788,-500.0,0.00013964,2]
[331123867,1720093843797,-151.0,0.00013964,2]
[331123868,1720093843806,-500.0,0.00013964,2]
[331123869,1720093843815,-151.0,0.00013964,2]
[331123870,1720093843824,-151.0,0.00013964,2]
[331123871,1720093843833,-500.0,0.00013964,2]
[331123872,1720093843842,-502.3351056,0.00013964,2]
[331123873,1720093843851,-500.0,0.00013964,2]
[331123874,1720093843859,-429.88288086,0.00013964,2]
[331123875,1720093843868,-151.0,0.00013964,2]
[331123876,1720093843877,-500.0,0.00013964,2]
[331123877,1720093843886,-500.0,0.00013964,2]
[331123878,1720093843896,-500.0,0.00013964,2]
[331123879,1720093843905,-501.99186785,0.00013964,2]
[331123880,1720093843914,-151.0,0.00013964,2]
[331123881,1720093843923,-500.0,0.00013964,2]
[331123882,1720093843933,-500.0,0.00013964,2]
[331123883,1720093843943,-500.0,0.00013964,2]
[331123884,1720093843951,-643.85,0.00013964,2]
[331123885,1720093843960,-500.0,0.00013964,2]
[331123886,1720093843970,-151.0,0.00013964,2]
[331123887,1720093843980,-500.0,0.00013964,2]
[331123888,1720093843989,-500.0,0.00013964,2]
[331123889,1720093843998,-336.32526303,0.00013964,2]
[331123890,1720093844008,-500.0,0.00013964,2]
[331123891,1720093844018,-500.0,0.00013964,2]
[331123892,1720093844027,-500.0,0.00013964,2]
[331123893,1720093844036,-550.499214,0.00013964,2]
[331123895,1720093844049,-550.499214,0.00013964,2]
[331123897,1720093844058,-151.0,0.00013964,2]
[331123899,1720093844068,-500.0,0.00013964,2]
[331123901,1720093844078,-509.95308106,0.00013964,2]
[331123902,1720093844087,-500.0,0.00013966,2]
[331123903,1720093844096,-500.0,0.00013966,2]
[331123904,1720093844105,-500.0,0.0001397,2]
[331123905,1720093844114,-500.0,0.0001397,2]
[331123906,1720093844128,-151.0,0.0001397,2]
[331123907,1720093844137,-1347.981152,0.0001397,2]
[331123908,1720093844146,-1347.981152,0.0001397,2]
[331123909,1720093844156,-163.794828,0.0001397,2]
[331123910,1720093844166,-151.0,0.0001397,2]
[331123911,1720093844175,-151.0,0.0001397,2]
[331123912,1720093844184,-151.0,0.0001397,2]
[331123913,1720093844193,-550.499214,0.0001397,2]
[331123914,1720093844205,-550.499214,0.0001397,2]
[331123915,1720093844214,-151.0,0.0001397,2]
[331123916,1720093844224,-531.00460404,0.00013973,2]
[331123917,1720093844233,-500.0,0.00013973,2]
[331123918,1720093844242,-1603.48,0.00013973,2]
[331123919,1720093844252,-511.90257238,0.00013974,2]
[331123920,1720093844261,-614.92457479,0.00013974,2]
[331123921,1720093844269,-500.0,0.00013974,2]
[331123922,1720093844279,-502.79153886,0.00013974,2]
[331123923,1720093844288,-500.0,0.00013974,2]
[331123924,1720093844297,-1083.33,0.00013974,2]
[331123925,1720093844306,-500.0,0.00013974,2]
[331123926,1720093844315,-291.51256337,0.00013974,2]
[331123927,1720093844324,-500.0,0.00013974,2]
[331123928,1720093844333,-500.0,0.00013974,2]
[331123929,1720093844342,-500.0,0.00013974,2]
[331123930,1720093844351,-216.85297782,0.00013974,2]
[331123931,1720093844360,-500.0,0.00013974,2]
[331123932,1720093844370,-258.7651179,0.00013974,2]
[331123933,1720093844379,-610.61,0.00013974,2]
[331123934,1720093844388,-500.0,0.00013974,2]
[331123935,1720093844397,-500.0,0.00013974,2]
[331123936,1720093844406,-500.0,0.00013974,2]
[331123937,1720093844415,-500.0,0.00013974,2]
[331123938,1720093844424,-500.0,0.00013974,2]
[331123939,1720093844433,-500.0,0.00013974,2]
[331123940,1720093844442,-500.0,0.00013974,2]
[331123941,1720093844451,-500.0,0.00013974,2]
[331123942,1720093844460,-500.0,0.00013974,2]
[331123943,1720093844469,-500.0,0.00013974,2]
[331123944,1720093844479,-500.0,0.00013974,2]
[331123945,1720093844488,-500.0,0.00013974,2]
[331123946,1720093844498,-500.0,0.00013974,2]
[331123947,1720093844507,-507.86197331,0.00013974,2]
[331123948,1720093844518,-772.79,0.00013974,2]
[331123949,1720093844527,-624.07,0.00013974,2]
[331123950,1720093844536,-504.17838627,0.00013974,2]
[331123951,1720093844545,-500.0,0.00013974,2]
[331123952,1720093844555,-500.0,0.00013974,2]
[331123953,1720093844565,-500.0,0.00013974,2]
[331123954,1720093844574,-875.25,0.00013974,2]
[331123955,1720093844583,-516.53471016,0.00013974,2]
[331123956,1720093844592,-500.0,0.00013974,2]
[331123957,1720093844601,-500.0,0.00013974,2]
[331123958,1720093844610,-500.0,0.00013974,2]
[331123959,1720093844619,-500.0,0.00013974,2]
[331123960,1720093844629,-500.0,0.00013974,2]
[331123961,1720093844638,-500.0,0.00013974,2]
[331123962,1720093844647,-500.0,0.00013974,2]
[331123963,1720093844656,-500.0,0.00013974,2]
[331123964,1720093844665,-500.0,0.00013974,2]
[331123965,1720093844675,-857.78,0.00013974,2]
[331123966,1720093844684,-500.0,0.00013974,2]
[331123967,1720093844693,-670.47,0.00013974,2]
[331123968,1720093844703,-519.1,0.00013974,2]
[331123969,1720093844712,-500.0,0.00013974,2]
[331123970,1720093844721,-500.0,0.00013974,2]
[331123971,1720093844730,-534.86202019,0.00013974,2]
[331123972,1720093844738,-534.91260146,0.00013974,2]
[331123973,1720093844747,-500.0,0.00013974,2]
[331123974,1720093844757,-500.0,0.00013974,2]
[331123975,1720093844765,-500.0,0.00013974,2]
[331123976,1720093844774,-638.25970023,0.00013974,2]
[331123977,1720093844784,-500.0,0.00013974,2]
[331123978,1720093844793,-500.0,0.00013974,2]
[331123979,1720093844803,-500.0,0.00013974,2]
[331123981,1720093844812,-500.0,0.00013974,2]
[331123982,1720093844822,-500.0,0.00013974,2]
[331123983,1720093844831,-500.0,0.00013974,2]
[331123984,1720093844840,-166.729659,0.00013974,2]
[331123985,1720093844849,-500.0,0.00013974,2]
[331123986,1720093844858,-500.0,0.00013974,2]
[331123987,1720093844867,-500.0,0.00013974,2]
[331123988,1720093844876,-500.0,0.00013974,2]
[331123989,1720093844886,-500.0,0.00013974,2]
[331123990,1720093844896,-501.74326954,0.0001398,2]
[331123991,1720093844905,-500.0,0.0001398,2]
[331123992,1720093844914,-500.0,0.0001398,2]
[331123993,1720093844924,-158.213752,0.0001398,2]
[331123994,1720093844933,-153.371644,0.0001398,2]
[331123995,1720093844943,-151.0,0.0001398,2]
[331123996,1720093844952,-151.0,0.0001398,2]
[331123997,1720093844961,-151.0,0.0001398,2]
[331123998,1720093844972,-310.0,0.0001398,2]
[331123999,1720093844982,-310.0,0.0001398,2]
[331124000,1720093844995,-457.699208,0.0001398,2]
[331124001,1720093845004,-151.0,0.0001398,2]
[331124002,1720093845014,-1603.48,0.0001398,2]
[331124003,1720093845024,-151.0,0.00013981,2]
[331124004,1720093845034,-13008.85,0.00013981,2]
[331124005,1720093845043,-690.32,0.00013981,2]
[331124006,1720093845053,-151.0,0.00013981,2]
[331124007,1720093845062,-500.0,0.00013981,2]
[331124008,1720093845071,-1347.981152,0.00013981,2]
[331124009,1720093845080,-1347.981152,0.00013981,2]
[331124010,1720093845090,-500.0,0.00013981,2]
[331124011,1720093845100,-500.0,0.00013981,2]
[331124012,1720093845109,-500.0,0.00013981,2]
[331124013,1720093845119,-151.0,0.00013981,2]
[331124014,1720093845133,-1215.55,0.00013981,2]
[331124015,1720093845142,-6271.9,0.00013981,2]
[331124016,1720093845151,-1603.48,0.00013984,2]
[331124017,1720093845160,-151.0,0.00013985,2]
[331124018,1720093845171,-854.63,0.00013985,2]
[331124019,1720093845180,-1044.76,0.00013985,2]
[331124020,1720093845189,-8161.51,0.00013985,2]
[331124021,1720093845198,-3932.31,0.00013985,2]
[331124022,1720093845208,-151.0,0.00013985,2]
[331124023,1720093845217,-151.0,0.00013985,2]
[331124024,1720093845228,-151.0,0.00013985,2]
[331124025,1720093845237,-550.499214,0.00013985,2]
[331124026,1720093845246,-550.499214,0.00013985,2]
[331124027,1720093845255,-151.0,0.00013991,2]
[331124028,1720093845264,-151.0,0.00013991,2]
[331124029,1720093845273,-153.0,0.00014,2]
[331124030,1720093845281,-11733.69165558,0.00014038,2]
[331124031,1720093845290,-309.7057795,0.00014055,2]
[331124032,1720093845299,-500.0,0.000141,2]
[331124033,1720093845308,-420.0,0.00014121,2]
[331124034,1720093845317,-500.0,0.00014132,2]
[331124035,1720093845326,-730.45,0.00014132,2]
[331124036,1720093845334,-3072.98,0.00014132,2]
[331124037,1720093845343,-500.0,0.00014132,2]
[331124038,1720093845352,-16067.48,0.00014132,2]
[331124039,1720093845361,-500.0,0.00014132,2]
[331124040,1720093845370,-1932.73,0.00014132,2]
[331124041,1720093845379,-500.0,0.00014145,2]
[331124042,1720093845389,-500.0,0.00014145,2]
[331124043,1720093845398,-500.0,0.00014145,2]
[331124044,1720093845407,-505.53909566,0.00014145,2]
[331124045,1720093845416,-505.63436566,0.00014145,2]
[331124046,1720093845426,-500.0,0.00014145,2]
[331124047,1720093845435,-513.24722029,0.00014145,2]
[331124048,1720093845444,-505.97644375,0.00014145,2]
[331124049,1720093845453,-500.0,0.00014145,2]
[331124050,1720093845462,-243.50844289,0.00014145,2]
[331124051,1720093845472,-2934.09,0.00014145,2]
[331124052,1720093845484,-500.0,0.00014145,2]
[331124053,1720093845493,-500.0,0.00014145,2]
[331124054,1720093845506,-500.0,0.00014145,2]
[331124055,1720093845515,-510.51860305,0.00014145,2]
[331124056,1720093845524,-500.0,0.00014145,2]
[331124057,1720093845533,-395.20564565,0.00014145,2]
[331124058,1720093845543,-976.48,0.00014145,2]
[331124059,1720093845553,-500.0,0.00014145,2]
[331124060,1720093845563,-515.53514878,0.00014145,2]
[331124061,1720093845573,-500.0,0.00014145,2]
[331124062,1720093845583,-500.0,0.00014145,2]
[331124063,1720093845594,-253.68498323,0.00014145,2]
[331124064,1720093845604,-500.0,0.00014145,2]
[331124065,1720093845614,-2272.52,0.00014145,2]
[331124066,1720093845623,-886.35,0.00014145,2]
[331124067,1720093845632,-503.19946116,0.00014145,2]
[331124068,1720093845642,-3075.16,0.00014145,2]
[331124069,1720093845742,-516.80713987,0.00014145,2]
[331124070,1720093845751,-506.80514878,0.00014145,2]
[331124071,1720093845761,-1625.78,0.00014145,2]
[331124072,1720093845772,-500.0,0.00014145,2]
[331124073,1720093845784,-518.95404305,0.00014145,2]
[331124074,1720093845793,-500.0,0.00014145,2]
[331124075,1720093845802,-500.0,0.00014145,2]
[331124076,1720093845811,-500.0,0.00014145,2]
[331124077,1720093845821,-500.0,0.00014145,2]
[331124078,1720093845830,-500.0,0.00014145,2]
[331124079,1720093845839,-500.0,0.00014145,2]
[331124080,1720093845848,-500.0,0.00014145,2]
[331124081,1720093845857,-1345.01,0.00014145,2]
[331124082,1720093845866,-500.0,0.00014145,2]
[331124083,1720093845875,-503.56967856,0.00014145,2]
[331124084,1720093845884,-504.81924249,0.00014145,2]
[331124085,1720093845893,-5556.78,0.00014145,2]
[331124086,1720093845902,-500.0,0.00014145,2]
[331124087,1720093845911,-510.29159396,0.00014145,2]
[331124088,1720093845920,-500.0,0.00014145,2]
[331124089,1720093845929,-512.4126193,0.00014145,2]
[331124090,1720093845938,-505.11152868,0.00014145,2]
[331124091,1720093845947,-505.70846594,0.00014145,2]
[331124092,1720093845957,-500.0,0.00014145,2]
[331124093,1720093845967,-500.0,0.0001415,2]
[331124094,1720093845976,-313.8,0.00014199,2]
[331124095,1720093845986,-500.0,0.000142,2]
[331124096,1720093845995,-1282.79,0.00014227,2]
[331124097,1720093846004,-500.0,0.00014227,2]
[331124098,1720093846014,-535.1131884,0.00014227,2]
[331124099,1720093846023,-503.96213452,0.00014227,2]
[331124100,1720093846032,-500.0,0.00014227,2]
[331124101,1720093846041,-500.0,0.00014227,2]
[331124102,1720093846051,-1816.95,0.00014227,2]
[331124103,1720093846060,-500.0,0.00014227,2]
[331124104,1720093846070,-500.0,0.00014227,2]
[331124105,1720093846079,-500.0,0.00014227,2]
[331124106,1720093846088,-500.0,0.00014227,2]
[331124107,1720093846097,-1149.45,0.00014227,2]
[331124108,1720093846107,-1550.27,0.00014227,2]
[331124109,1720093846116,-500.0,0.00014227,2]
[331124110,1720093846130,-500.0,0.00014227,2]
[331124111,1720093846139,-500.0,0.00014227,2]
[331124112,1720093846148,-1028.15,0.00014227,2]
[331124113,1720093846158,-500.0,0.00014227,2]
[331124114,1720093846167,-1603.48,0.00014227,2]
[331124115,1720093846176,-500.0,0.00014227,2]
[331124116,1720093846185,-500.0,0.00014227,2]
[331124117,1720093846195,-500.0,0.00014227,2]
[331124118,1720093846205,-507.69000949,0.00014227,2]
[331124119,1720093846215,-500.0,0.00014227,2]
[331124120,1720093846225,-500.0,0.00014227,2]
[331124121,1720093846233,-865.84,0.00014227,2]
[331124122,1720093846243,-500.0,0.00014227,2]
[331124123,1720093846252,-500.0,0.00014227,2]
[331124124,1720093846261,-500.0,0.00014227,2]
[331124125,1720093846270,-500.0,0.00014227,2]
[331124126,1720093846279,-1347.981152,0.00014227,2]
[331124127,1720093846288,-500.0,0.00014227,2]
[331124128,1720093846298,-1347.981152,0.00014227,2]
[331124129,1720093846307,-500.0,0.00014227,2]
[331124130,1720093846317,-1444.78,0.00014227,2]
[331124131,1720093846326,-1323.11,0.00014227,2]
[331124132,1720093846335,-880.31,0.00014227,2]
[331124133,1720093846344,-5932.72,0.00014227,2]
[331124134,1720093846352,-500.0,0.00014227,2]
[331124135,1720093846362,-500.0,0.00014227,2]
[331124136,1720093846371,-500.0,0.00014227,2]
[331124137,1720093846379,-500.0,0.00014227,2]
[331124138,1720093846388,-533.25597674,0.00014227,2]
[331124139,1720093846397,-500.0,0.00014227,2]
[331124140,1720093846407,-500.0,0.00014227,2]
[331124141,1720093846415,-506.88308617,0.00014227,2]
[331124142,1720093846424,-500.0,0.00014227,2]
[331124143,1720093846433,-673.92,0.00014227,2]
[331124144,1720093846442,-500.0,0.00014227,2]
[331124145,1720093846451,-504.30316404,0.00014227,2]
[331124147,1720093846460,-500.0,0.00014227,2]
[331124149,1720093846469,-1040.62,0.00014227,2]
[331124151,1720093846478,-151.0,0.00014227,2]
[331124153,1720093846487,-500.0,0.00014227,2]
[331124155,1720093846496,-500.0,0.00014227,2]
[331124157,1720093846506,-151.0,0.00014227,2]
[331124159,1720093846515,-500.0,0.00014227,2]
[331124162,1720093846524,-500.0,0.00014227,2]
[331124163,1720093846533,-387.46620817,0.00014227,2]
[331124164,1720093846541,-151.0,0.00014227,2]
[331124165,1720093846550,-507.66395536,0.00014227,2]
[331124166,1720093846561,-550.499214,0.00014227,2]
[331124167,1720093846570,-550.499214,0.00014227,2]
[331124168,1720093846579,-500.0,0.00014227,2]
[331124169,1720093846588,-194.703043,0.00014227,2]
[331124170,1720093846597,-500.0,0.00014227,2]
[331124171,1720093846606,-500.0,0.00014227,2]
[331124172,1720093846615,-1142.32,0.00014227,2]
[331124173,1720093846624,-151.0,0.00014228,2]
[331124174,1720093846633,-247.928671,0.00014228,2]
[331124175,1720093846643,-199.465859,0.00014228,2]
[331124176,1720093846652,-151.0,0.00014228,2]
[331124177,1720093846661,-500.0,0.00014237,2]
[331124178,1720093846670,-1205.3,0.00014237,2]
[331124179,1720093846679,-500.0,0.00014237,2]
[331124180,1720093846688,-1603.48,0.00014237,2]
[331124181,1720093846696,-1603.48,0.00014237,2]
[331124182,1720093846705,-500.0,0.00014237,2]
[331124183,1720093846714,-500.0,0.00014237,2]
[331124184,1720093846723,-5112.35,0.00014237,2]
[331124185,1720093846732,-500.0,0.00014238,2]
[331124186,1720093846741,-500.0,0.00014238,2]
[331124187,1720093846750,-500.0,0.00014238,2]
[331124188,1720093846759,-505.27918505,0.00014238,2]
[331124189,1720093846769,-857.1,0.00014238,2]
[331124190,1720093846779,-500.0,0.00014238,2]
[331124191,1720093846787,-770.97,0.00014238,2]
[331124192,1720093846796,-502.23915687,0.00014238,2]
[331124193,1720093846806,-500.0,0.00014238,2]
[331124194,1720093846815,-206.08793187,0.00014238,2]
[331124195,1720093846824,-500.0,0.00014238,2]
[331124196,1720093846833,-500.0,0.00014238,2]
[331124197,1720093846842,-500.0,0.00014238,2]
[331124198,1720093846852,-500.0,0.00014238,2]
[331124199,1720093846861,-500.0,0.00014238,2]
[331124200,1720093846869,-500.0,0.00014238,2]
[331124201,1720093846879,-500.0,0.00014238,2]
[331124202,1720093846889,-500.0,0.00014238,2]
[331124203,1720093846899,-500.0,0.00014238,2]
[331124204,1720093846908,-500.0,0.00014238,2]
[331124205,1720093846918,-500.0,0.00014238,2]
[331124206,1720093846927,-500.0,0.00014238,2]
[331124207,1720093846936,-500.0,0.00014238,2]
[331124208,1720093846946,-500.0,0.00014238,2]
[331124209,1720093846955,-492.02435946,0.00014238,2]
[331124210,1720093846965,-500.0,0.00014238,2]
[331124211,1720093846975,-500.0,0.00014238,2]
[331124212,1720093846984,-500.0,0.00014238,2]
[331124213,1720093846993,-500.0,0.00014238,2]
[331124214,1720093847002,-500.0,0.00014238,2]
[331124215,1720093847012,-500.0,0.00014238,2]
[331124216,1720093847021,-500.0,0.00014238,2]
[331124217,1720093847030,-500.0,0.00014238,2]
[331124218,1720093847039,-500.0,0.00014238,2]
[331124219,1720093847048,-500.0,0.00014238,2]
[331124220,1720093847057,-500.0,0.00014238,2]
[331124221,1720093847066,-500.0,0.00014238,2]
[331124222,1720093847075,-500.0,0.00014238,2]
[331124223,1720093847085,-500.0,0.00014238,2]
[331124224,1720093847094,-500.0,0.00014238,2]
[331124225,1720093847103,-500.0,0.00014238,2]
[331124226,1720093847112,-500.0,0.00014238,2]
[331124228,1720093847127,-500.0,0.00014238,2]
[331124229,1720093847136,-500.0,0.00014238,2]
[331124230,1720093847146,-500.0,0.00014238,2]
[331124231,1720093847155,-500.0,0.00014238,2]
[331124232,1720093847166,-500.0,0.00014238,2]
[331124233,1720093847175,-500.0,0.00014238,2]
[331124234,1720093847185,-530.82,0.00014238,2]
[331124235,1720093847194,-504.30890535,0.00014238,2]
[331124236,1720093847206,-500.0,0.00014238,2]
[331124237,1720093847215,-500.0,0.00014238,2]
[331124238,1720093847225,-500.0,0.00014238,2]
[331124239,1720093847234,-500.0,0.00014238,2]
[331124240,1720093847243,-500.0,0.00014238,2]
[331124241,1720093847251,-500.0,0.00014238,2]
[331124242,1720093847260,-500.0,0.00014238,2]
[331124243,1720093847271,-500.0,0.00014238,2]
[331124244,1720093847280,-500.0,0.00014238,2]
[331124245,1720093847289,-500.0,0.00014238,2]
[331124246,1720093847298,-500.0,0.00014238,2]
[331124247,1720093847307,-500.0,0.00014238,2]
[331124248,1720093847316,-515.76908694,0.00014238,2]
[331124249,1720093847325,-500.0,0.00014238,2]
[331124250,1720093847334,-500.0,0.00014238,2]
[331124251,1720093847343,-514.9512826,0.00014238,2]
[331124252,1720093847352,-500.0,0.00014238,2]
[331124253,1720093847362,-500.0,0.00014238,2]
[331124254,1720093847371,-553.36074821,0.00014238,2]
[331124255,1720093847380,-554.53295785,0.00014238,2]
[331124256,1720093847389,-743.39,0.00014238,2]
[331124257,1720093847398,-500.0,0.00014238,2]
[331124258,1720093847407,-500.0,0.00014238,2]
[331124259,1720093847416,-506.00537263,0.00014238,2]
[331124260,1720093847425,-500.0,0.00014238,2]
[331124261,1720093847434,-500.0,0.00014238,2]
[331124262,1720093847443,-500.0,0.00014238,2]
[331124263,1720093847451,-500.0,0.00014238,2]
[331124264,1720093847460,-500.0,0.00014238,2]